[Event "XII Cracow ICC-A 2024"]
[Site "Krakow"]
[Date "2024.06.28"]
[Round "8.6"]
[White "Fier, Alexandr"]
[Black "Gierulski, Kamil"]
[Result "1-0"]
[ECO "D42"]
[WhiteElo "2602"]
[BlackElo "2242"]
[Annotator "TA"]
[PlyCount "67"]
[EventDate "2024.06.20"]
[EventType "swiss"]
[EventCountry "POL"]
[SourceTitle "playchess.com"]
[Source "ChessBase"]
[SourceQuality "1"]
[TimeControl "40/5400+30:1800+30"]

{[%evp 19,67,61,65,57,61,62,64,79,72,71,72,72,70,67,72,70,71,33,25,25,47,22,21,10,28,21,108,71,67,96,133,111,427,231,407,402,910,465,2176,2576,2518,2502,4048,4216,29968,29969,29984,29985,29985,110]} 1. c4 {[%emt 0:00:02]} c5 {[%emt 0:00:02]} 2. Nf3 {[%emt 0:00:06]} Nf6 {[%emt 0:00:03]} 3. Nc3 {[%emt 0:00:08]} Nc6 {[%emt 0:00:03]} 4. e3 {[%emt 0:02:13]} e6 {[%emt 0:00:08]} 5. d4 {[%emt 0:00:06]} d5 {[%emt 0:00:05]} 6. cxd5 {[%emt 0:00:04]} Nxd5 {[%emt 0:00:05]} 7. Bd3 {[%emt 0:00:06]} Be7 {[%emt 0:00:21]} 8. O-O {[%emt 0:00:09]} O-O {[%emt 0:00:07]} 9. a3 {[%emt 0:00:16]} Nf6 {[%emt 0:12:44]} 10. dxc5 {[%emt 0:00:55]} Bxc5 {[%emt 0:00:09]} 11. b4 {[%emt 0:00:05]} Bd6 {[%emt 0:02:04]} 12. Bb2 {[%emt 0:01:14]} Qe7 {[%emt 0:08:19]} 13. Ne4 {[%emt 0:00:34] White is slightly better.} Nxe4 {[%emt 0:00:13]} 14. Bxe4 {[%emt 0:00:05]} f5 {[%emt 0:05:24]} 15. Bxc6 {[%emt 0:02:45]} bxc6 {[%emt 0:00:02]} 16. Be5 {[%emt 0:00:12]} Bxe5 {[%emt 0:04:00]} 17. Nxe5 {[%emt 0:00:04]} c5 {[%emt 0:00:08]} 18. b5 {[%emt 0:01:43]} Bb7 {[%emt 0:05:56]} 19. Qc2 {[%emt 0:00:06]} Rab8 {[%emt 0:04:24]} 20. Rac1 {[%emt 0:02:52]} Rfc8 {[%emt 0:01:17]} 21. a4 {[%emt 0:00:11]} a6 {[%emt 0:01:30]} 22. b6 {[%emt 0:01:38] And now Qc3 would win.} c4 {[%emt 0:04:52]} 23. Qc3 {[%emt 0:01:10][%cal Oa4a5]} (23. Nxc4 $2 Bd5 24. Qd3 Qc5 $19) 23... a5 {[%emt 0:02:40]} 24. Rfd1 $36 {[%emt 0:02:19][%mdl 2048] Keeping Black busy. White is much more active.} Bd5 {[%emt 0:02:04]} 25. Qxa5 {[%emt 0:00:46] [#] Hoping for Rxd5.} Qb7 {[%emt 0:01:00][%mdl 8192] Black cannot hold the game after this.} (25... Qa3 $16) 26. Qc3 {[%emt 0:00:54]} (26. e4 fxe4 27. Qb5 e3 $16 (27... Qxb6 $2 28. Rxd5 c3 29. Qxb6 $18)) (26. Qb5 $142) 26... Rd8 $2 {[%emt 0:03:08]} (26... Qxb6 {might work better.} 27. Nd7 Qb3 28. Nxb8 Qxb8) 27. a5 $18 {[%emt 0:01:59][%cal Ba4a5,Ba5a6][%mdl 32]} (27. Nxc4 Bxc4 28. Qxc4 Qxb6 $18) 27... Bxg2 {[%emt 0:08:28]} (27... Qa6 $142 28. Qb4 (28. Nxc4 Qxc4 29. Qxc4 Bxc4 $14) 28... h6) 28. a6 {[%emt 0:00:35]} (28. Nxc4 Bh1 29. f3 Rxd1+ 30. Rxd1 Qxf3 $18) 28... Qe4 {[%emt 0:00:20]} (28... Qxa6 $142 29. Rxd8+ (29. Kxg2 Qb7+ 30. Kg3 Rxd1 $18) (29. Qxc4 Rxd1+ 30. Rxd1 Qxc4 $11) (29. Nxc4 Bd5 $15) 29... Rxd8 30. Kxg2 Qxb6 31. Qxc4 Qb7+ 32. Kh3 Re8) 29. Rxd8+ {[%emt 0:01:06]} (29. Nxc4 $2 {too greedy.} Rxd1+ 30. Rxd1 Bh3 $19) 29... Rxd8 {[%emt 0:00:06]} 30. Qxc4 {[%emt 0:00:17]} ({Weaker is} 30. Nxc4 Bh3 31. f3 Qxf3 $11) 30... Qxe5 {[%emt 0:02:30]} 31. Kxg2 {[%emt 0:00:05]} f4 {[%emt 0:00:44]} 32. Qxf4 {[%emt 0:00:50] White mates.} Qb2 {[%emt 0:01:17]} 33. Rc7 {[%emt 0:00:13]} Rf8 {[%emt 0:03:02] [#]} 34. Qxf8+ $3 {[%emt 0:00:29][%mdl 512] Weighted Error Value: White=0.49/Black=0.76.  Loses game:     	---       	Black=1      Mistake:       	White=1     	Black=4      Inaccurate:     	White=3     	---        OK:         	White=6     	Black=8      Best:        	---       	Black=1} 1-0

[Event "XII Cracow ICC-A 2024"]
[Site "Krakow"]
[Date "2024.06.28"]
[Round "8.7"]
[White "Gorkiewicz, Mateusz"]
[Black "Mirzoev, Azer"]
[Result "1/2-1/2"]
[ECO "B12"]
[WhiteElo "2223"]
[BlackElo "2448"]
[Annotator "TA"]
[PlyCount "114"]
[EventDate "2024.06.20"]
[EventType "swiss"]
[EventCountry "POL"]
[SourceTitle "playchess.com"]
[Source "ChessBase"]
[SourceQuality "1"]
[TimeControl "40/5400+30:1800+30"]

{[%evp 28,114,81,79,91,34,29,36,39,8,5,0,0,-50,-27,-43,-54,-37,-53,-37,-42,-32,-31,-43,-39,-33,-42,-41,-18,-27,0,-20,-1,-13,0,0,10,12,93,52,81,19,64,66,103,106,84,72,65,26,80,27,41,0,43,44,39,8,8,8,9,0,8,0,0,0,202,0,0,0,0,0,0,0,0,0,0,0,0,0,0,0,0,0,0,0,0,0,829]} 1. e4 {[%emt 0:00:03]} c6 {[%emt 0:00:13]} 2. d4 {[%emt 0:00:14]} d5 {[%emt 0:00:07]} 3. e5 {[%emt 0:00:10]} Bf5 {[%emt 0:00:08]} 4. Nf3 {[%emt 0:00:32]} e6 {[%emt 0:00:07]} 5. a3 {[%emt 0:00:15]} Nd7 {[%emt 0:00:22]} 6. Nbd2 {[%emt 0:00:39]} h6 {[%emt 0:01:17] B12: Caro-Kann: Advance Variation.} 7. Be2 {[%emt 0:00:29]} Ne7 {[%emt 0:00:08]} 8. O-O {[%emt 0:00:30]} Bh7 {[%emt 0:00:39]} 9. b3 {[%emt 0:01:14]} Ng6 {[%emt 0:00:20]} 10. Re1 {[%emt 0:08:05]} Be7 {[%emt 0:00:50]} 11. Bb2 {[%emt 0:00:32]} O-O {[%emt 0:03:00]} 12. Bf1 $146 {[%emt 0:03:11]} ({Predecessor:} 12. c4 Nf4 13. c5 b6 14. b4 f6 15. g3 Nxe2+ 16. Qxe2 fxe5 17. Nxe5 Nxe5 18. Qxe5 {0-1 Hofmann,T (2223)-Zelcic,R (2501) Schwarzach op 30th 2015 (4)}) 12... a5 {[%emt 0:09:22]} 13. g3 {[%emt 0:02:04]} c5 {[%emt 0:01:18]} 14. c4 {[%emt 0:07:13]} Nb6 {[%emt 0:03:24]} 15. cxd5 {[%emt 0:16:39]} Nxd5 {[%emt 0:00:30]} 16. Ne4 {[%emt 0:03:56]} (16. Rc1 $16) 16... cxd4 $14 {[%emt 0:00:43]} 17. Qxd4 {[%emt 0:01:53]} Qb8 {[%emt 0:01:06]} 18. Rac1 {[%emt 0:07:44]} Rd8 {[%emt 0:00:29]} 19. Qa4 {[%emt 0:02:31]} Nf8 {[%emt 0:01:26]} 20. Nc3 {[%emt 0:11:04]} ({White should try} 20. Qc4 $11) 20... Nb4 {[%emt 0:16:45]} 21. axb4 {[%emt 0:03:53]} axb4 {[%emt 0:00:05]} 22. Qb5 {[%emt 0:00:11]} bxc3 {[%emt 0:00:09]} 23. Bxc3 {[%emt 0:00:21]} Rd5 {[%emt 0:01:28]} 24. Qc4 {[%emt 0:02:51]} Nd7 {[%emt 0:07:21]} 25. Bd4 {[%emt 0:04:09]} Nc5 {[%emt 0:01:49]} 26. b4 {[%emt 0:09:37]} Na6 {[%emt 0:07:50]} 27. b5 {[%emt 0:00:31]} Nc5 {[%emt 0:00:25]} 28. Ra1 {[%emt 0:00:48]} g5 {[%emt 0:03:32]} 29. h3 {[%emt 0:02:03]} Bg6 {[%emt 0:00:32]} 30. Qc3 {[%emt 0:01:55]} Rxa1 {[%emt 0:07:23]} 31. Rxa1 {[%emt 0:00:05]} Qf8 {[%emt 0:00:46]} 32. Qe3 {[%emt 0:03:03]} Rd8 {[%emt 0:01:07]} (32... b6 $11) 33. Nd2 {[%emt 0:00:54]} Kh7 {[%emt 0:04:26]} 34. Rc1 {[%emt 0:01:59]} (34. Ra7 $16) 34... b6 {[%emt 0:01:09]} 35. Bg2 {[%emt 0:01:43]} (35. Nc4 Rxd4 36. Qxd4 Nb3 37. Qxb6 Nxc1 $15) 35... Nd3 {[%emt 0:04:54] [#]} 36. Rc4 $1 {[%emt 0:01:56]} Nb4 {[%emt 0:06:51]} 37. Be4 {[%emt 0:02:53]} (37. Bxb6 Nd5 38. Bxd5 Rxd5 $11) 37... Nd5 {[%emt 0:00:08]} 38. Qd3 {[%emt 0:00:32]} Bxe4 {[%emt 0:04:37]} (38... Qg8 $11) 39. Qxe4+ {[%emt 0:00:05]} (39. Nxe4 $16 {Intending Nf6+ and mate.} Kg8 40. Rc6) 39... Kg7 {[%emt 0:00:49]} 40. Rc6 {[%emt 0:01:16]} Bc5 {[%emt 0:01:38]} 41. Bxc5 {[%emt 0:11:55]} bxc5 {[%emt 0:00:06]} 42. Nb3 {[%emt 0:01:47]} Nc3 {[%emt 0:11:57]} 43. Qc4 {[%emt 0:00:51]} Rd1+ {[%emt 0:01:08]} 44. Kg2 {[%emt 0:00:18]} Nd5 {[%emt 0:00:36]} (44... Qb8 $5) 45. Qe2 {[%emt 0:16:05]} Rb1 {[%emt 0:00:25]} 46. Qa2 {[%emt 0:00:19]} Re1 $2 {[%emt 0:02:22] [#]} (46... Nc3 $11 {and Black has nothing to worry.} 47. Qc2 Qd8 48. Rxc5 Qa8+ 49. Rc6 (49. f3 $2 Qa3 $17) 49... Nxb5) 47. Nxc5 $2 {[%emt 0:00:07]} ({White must play} 47. Qa7 $1 $18) 47... Qb8 $11 {[%emt 0:02:04]} (47... Nb4 48. Nxe6+ fxe6 49. Rc7+ Kh8 50. Qxe6 Qa8+ 51. Rc6 Nxc6 52. Qf6+ (52. Qxh6+ Kg8 $11) 52... Kg8 53. Qe6+ Kg7 54. Qf6+ Kg8 55. Qg6+ Kh8 56. Qxh6+ Kg8 57. Qg6+ (57. bxc6 Qd8 $11) (57. Qxg5+ Kh7 $11) 57... Kh8 58. Qh6+ (58. Qxc6 Qxc6+ 59. bxc6 Rxe5 $19) (58. bxc6 Qd8 $11) 58... Kg8 59. Qxg5+ (59. bxc6 Qd8 $11) 59... Kh7 60. Qf5+ (60. bxc6 $2 Qxc6+ 61. f3 Qc2+) 60... Kg8 61. Qg6+ (61. bxc6 Qxc6+ 62. f3 Re2+ 63. Kf1 Rc2 $19) 61... Kf8 62. Qf6+ (62. Qxc6 Qxc6+ 63. bxc6 Rxe5 $19) (62. bxc6 Qe8 $11) 62... Kg8 63. Qe6+ (63. Qxc6 $2 Qxc6+ 64. bxc6 Rxe5 $19) (63. bxc6 Qe8 $11) 63... Kg7 64. bxc6 (64. Qxc6 $2 Qxc6+ 65. bxc6 Rxe5 $19)) 48. b6 {[%emt 0:02:50]} Qxe5 {[%emt 0:06:11]} (48... Nxb6 $2 {is the wrong capture.} 49. Nxe6+ Kg8 (49... fxe6 $2 {too greedy.} 50. Qxe6 Qxe5 51. Qg6+ Kf8 52. Rf6+ Ke7 53. Qg7+ Kd8 54. Rf8+ $18) 50. Nd4 Qxe5 51. Nf3 $18 (51. Rxb6 Qxd4 52. Rg6+ Kf8 $14) (51. Rg6+ Kh8 $18)) 49. b7 {[%emt 0:00:26]} Nb4 {[%emt 0:06:36]} 50. Nxe6+ {[%emt 0:00:32]} fxe6 {[%emt 0:00:22]} 51. Rxe6 {[%emt 0:00:09]} Nxa2 {[%emt 0:00:16]} 52. Rxe5 {[%emt 0:00:05]} Rb1 {[%emt 0:00:04]} 53. Re7+ {[%emt 0:00:44]} Kf6 {[%emt 0:00:39]} 54. Rc7 {[%emt 0:01:00]} Rb5 {[%emt 0:00:28]} 55. Rc6+ {[%emt 0:00:25]} Kg7 {[%emt 0:00:05]} 56. Rc7+ {[%emt 0:00:07]} Kf6 {[%emt 0:00:06]} 57. Rc6+ {[%emt 0:00:03]} Ke5 $2 {[%mdl 8192]} (57... Kg7 $11) 1/2-1/2

[Event "XII Cracow ICC-A 2024"]
[Site "Krakow"]
[Date "2024.06.28"]
[Round "8.8"]
[White "Bogdanov, Egor"]
[Black "Brzezina, Piotr"]
[Result "1-0"]
[ECO "C24"]
[WhiteElo "2433"]
[BlackElo "2298"]
[Annotator "RC"]
[PlyCount "96"]
[EventDate "2024.06.20"]
[EventType "swiss"]
[EventCountry "POL"]
[SourceTitle "playchess.com"]
[Source "ChessBase"]
[SourceQuality "1"]
[TimeControl "40/5400+30:1800+30"]

1. e4 {[%emt 0:00:01]} e5 {[%emt 0:01:53]} 2. Bc4 {[%emt 0:01:09]} Nf6 {[%emt 0:00:31]} 3. d3 {[%emt 0:00:06]} c6 {[%emt 0:00:09]} 4. Nf3 {[%emt 0:00:12]} d5 {[%emt 0:00:05]} 5. Bb3 {[%emt 0:00:20]} a5 {[%emt 0:00:14]} 6. a4 {[%emt 0:00:11]} Bb4+ {[%emt 0:00:17]} 7. c3 {[%emt 0:04:41]} Bd6 {[%emt 0:00:13]} 8. O-O {[%emt 0:00:55]} O-O {[%emt 0:03:12]} 9. Re1 {[%emt 0:02:18]} dxe4 {[%emt 0:00:15]} 10. dxe4 {[%emt 0:00:11]} Na6 {[%emt 0:00:35]} 11. Nbd2 {[%emt 0:04:12]} Nc5 {[%emt 0:00:39]} 12. Bc4 {[%emt 0:02:07]} Bc7 {[%emt 0:06:55]} 13. Qc2 {[%emt 0:02:31]} Qe7 {[%emt 0:04:11]} 14. Nf1 {[%emt 0:07:00]} Be6 {[%emt 0:12:03]} 15. Bxe6 {[%emt 0:02:55]} Qxe6 {[%emt 0:00:57]} 16. Bg5 {[%emt 0:06:16]} h6 {[%emt 0:01:26]} 17. Bxf6 {[%emt 0:00:18]} Qxf6 {[%emt 0:00:04]} 18. Ne3 {[%emt 0:01:05]} Rfd8 {[%emt 0:04:28]} 19. h3 {[%emt 0:12:00]} Qe6 {[%emt 0:17:36]} 20. Nf5 {[%emt 0:11:00]} Kh7 {[%emt 0:07:34]} 21. Qe2 {[%emt 0:13:58]} Kg8 {[%emt 0:20:16]} 22. Nh2 {[%emt 0:04:58]} Bb6 {[%emt 0:08:05]} 23. Red1 {[%emt 0:07:12]} Rxd1+ {[%emt 0:03:00]} 24. Rxd1 {[%emt 0:00:01]} Rd8 {[%emt 0:00:42]} 25. Rxd8+ {[%emt 0:01:46]} Bxd8 {[%emt 0:00:01]} 26. b4 {[%emt 0:00:00]} axb4 {[%emt 0:01:59]} 27. cxb4 {[%emt 0:00:02]} Na6 {[%emt 0:03:08]} 28. Qg4 {[%emt 0:02:02]} Qf6 {[%emt 0:01:14]} 29. Qd1 {[%emt 0:00:42]} h5 {[%emt 0:01:34]} 30. Qd7 {[%emt 0:03:51]} g6 {[%emt 0:01:38]} 31. Qxb7 {[%emt 0:01:08]} gxf5 {[%emt 0:00:34]} 32. Qxa6 {[%emt 0:00:01]} fxe4 {[%emt 0:00:09]} 33. Nf1 {[%emt 0:00:30]} Kf8 {[%emt 0:00:43]} 34. a5 {[%emt 0:00:34]} Qe7 {[%emt 0:00:39]} 35. Qc8 {[%emt 0:01:16]} Qc7 {[%emt 0:00:20]} 36. Qxc7 {[%emt 0:04:05]} Bxc7 {[%emt 0:00:00]} 37. Ng3 {[%emt 0:00:09]} h4 {[%emt 0:01:06]} 38. Nf5 {[%emt 0:00:20]} Ke8 {[%emt 0:00:34]} 39. Nxh4 {[%emt 0:01:36]} Kd7 {[%emt 0:00:25]} 40. Nf5 {[%emt 0:00:32]} Ke6 {[%emt 0:00:35]} 41. g4 {[%emt 0:30:18]} c5 {[%emt 0:30:30]} 42. a6 {[%emt 0:00:49]} Bb6 {[%emt 0:00:07]} 43. bxc5 {[%emt 0:00:20]} Bxc5 {[%emt 0:00:04]} 44. h4 {[%emt 0:00:31]} Ba7 {[%emt 0:01:00]} 45. Kf1 {[%emt 0:00:28]} Bb6 {[%emt 0:00:29]} 46. Ke2 {[%emt 0:00:17]} Bc5 {[%emt 0:00:32]} 47. Ng3 {[%emt 0:00:10]} Bd4 {[%emt 0:00:00]} 48. Nxe4 {[%emt 0:00:00]} Kd5 1-0

[Event "XII Cracow ICC-A 2024"]
[Site "Krakow"]
[Date "2024.06.28"]
[Round "8.9"]
[White "Citak, Selim"]
[Black "Sieciechowicz, Marcin"]
[Result "1/2-1/2"]
[ECO "C07"]
[WhiteElo "2345"]
[BlackElo "2405"]
[Annotator "RC"]
[PlyCount "42"]
[EventDate "2024.06.20"]
[EventType "swiss"]
[EventCountry "POL"]
[SourceTitle "playchess.com"]
[Source "ChessBase"]
[SourceQuality "1"]
[TimeControl "40/5400+30:1800+30"]

1. e4 {[%emt 0:00:04]} e6 {[%emt 0:00:36]} 2. d4 {[%emt 0:00:10]} d5 {[%emt 0:00:04]} 3. Nd2 {[%emt 0:00:18]} c5 {[%emt 0:00:08]} 4. exd5 {[%emt 0:00:23]} Qxd5 {[%emt 0:00:15]} 5. Ngf3 {[%emt 0:00:13]} cxd4 {[%emt 0:00:24]} 6. Bc4 {[%emt 0:00:17]} Qd6 {[%emt 0:00:03]} 7. O-O {[%emt 0:00:29]} Nf6 {[%emt 0:00:08]} 8. Nb3 {[%emt 0:00:23]} Nc6 {[%emt 0:00:04]} 9. Nbxd4 {[%emt 0:00:18]} Nxd4 {[%emt 0:00:06]} 10. Nxd4 {[%emt 0:00:21]} Be7 {[%emt 0:00:08]} 11. c3 {[%emt 0:01:10]} O-O {[%emt 0:00:20]} 12. Qf3 {[%emt 0:01:46]} Qc7 {[%emt 0:02:43]} 13. Bd3 {[%emt 0:00:17]} Bd7 {[%emt 0:01:10]} 14. Re1 {[%emt 0:00:34]} Rfe8 {[%emt 0:01:26]} 15. h3 {[%emt 0:06:09]} Rad8 {[%emt 0:06:26]} 16. Bf4 {[%emt 0:02:26]} Qb6 {[%emt 0:08:16]} 17. Be5 {[%emt 0:02:41]} Bc6 {[%emt 0:09:12]} 18. Nxc6 {[%emt 0:02:29]} bxc6 {[%emt 0:00:50]} 19. Qe2 {[%emt 0:07:04]} Rd7 {[%emt 0:06:26]} 20. Rad1 {[%emt 0:04:51]} Red8 {[%emt 0:00:53]} 21. Bc2 {[%emt 0:04:32]} Kf8 {[%emt 0:19:51]} 1/2-1/2

[Event "XII Cracow ICC-A 2024"]
[Site "Krakow"]
[Date "2024.06.28"]
[Round "8.10"]
[White "Aarav Dengla"]
[Black "Janeczko, Jakub"]
[Result "1/2-1/2"]
[ECO "B40"]
[WhiteElo "2395"]
[BlackElo "2293"]
[Annotator "RC"]
[PlyCount "29"]
[EventDate "2024.06.20"]
[EventType "swiss"]
[EventCountry "POL"]
[SourceTitle "playchess.com"]
[Source "ChessBase"]
[SourceQuality "1"]
[TimeControl "40/5400+30:1800+30"]

1. e4 {[%emt 0:00:03]} c5 {[%emt 0:00:09]} 2. Nf3 {[%emt 0:00:03]} e6 {[%emt 0:00:04]} 3. b3 {[%emt 0:00:53]} d6 {[%emt 0:04:17]} 4. d4 {[%emt 0:14:45]} cxd4 {[%emt 0:00:58]} 5. Nxd4 {[%emt 0:01:48]} Nf6 {[%emt 0:00:21]} 6. Bb5+ {[%emt 0:09:27]} Nbd7 {[%emt 0:02:10]} 7. Qe2 {[%emt 0:04:15]} Be7 {[%emt 0:03:35]} 8. O-O {[%emt 0:01:16]} O-O {[%emt 0:00:06]} 9. Bxd7 {[%emt 0:02:08]} Bxd7 {[%emt 0:00:52]} 10. c4 {[%emt 0:00:13]} a6 {[%emt 0:05:51]} 11. Nc3 {[%emt 0:01:56]} Qa5 {[%emt 0:22:16]} 12. Bd2 {[%emt 0:13:29]} Qe5 {[%emt 0:00:32]} 13. Nf3 {[%emt 0:09:23]} Qh5 {[%emt 0:00:11]} 14. e5 {[%emt 0:01:20]} Ng4 {[%emt 0:08:23]} 15. Bf4 {[%emt 0:08:36]} 1/2-1/2

[Event "XII Cracow ICC-A 2024"]
[Site "Krakow"]
[Date "2024.06.28"]
[Round "8.11"]
[White "Licznerski, Lukasz"]
[Black "Keleberda, Tymur"]
[Result "1-0"]
[ECO "B92"]
[WhiteElo "2434"]
[BlackElo "2223"]
[Annotator "TA"]
[PlyCount "169"]
[EventDate "2024.06.20"]
[EventType "swiss"]
[EventCountry "POL"]
[SourceTitle "playchess.com"]
[Source "ChessBase"]
[SourceQuality "1"]
[TimeControl "40/5400+30:1800+30"]

{[%evp 14,169,0,0,0,0,0,0,46,33,29,47,25,29,39,0,11,6,3,-20,-14,-18,-22,-15,-18,-13,-6,-10,0,-1,0,0,21,13,12,0,22,3,14,0,0,0,14,0,0,0,0,0,0,0,0,0,0,-4,8,0,0,0,25,0,53,31,35,46,35,48,41,60,33,39,47,51,75,76,157,147,306,277,236,244,379,320,479,483,392,377,792,709,792,600,820,804,690,574,407,0,0,0,0,0,0,8,8,0,8,8,277,231,164,106,83,100,104,59,59,0,0,0,0,0,0,0,547,556,1314,1178,908,0,0,0,0,0,0,0,0,0,0,0,0,0,0,0,0,0,0,0,0,0,8,0,8,8,8,0,4,0,511,486]} 1. e4 {[%emt 0:01:30]} c5 {[%emt 0:00:13]} 2. Nf3 {[%emt 0:00:03]} d6 {[%emt 0:00:04]} 3. d4 {[%emt 0:00:05]} cxd4 {[%emt 0:00:04]} 4. Nxd4 {[%emt 0:00:04]} Nf6 {[%emt 0:00:05]} 5. Nc3 {[%emt 0:00:04]} a6 {[%emt 0:00:08]} 6. Be2 {[%emt 0:00:04]} e5 {[%emt 0:00:05]} 7. Nf3 {[%emt 0:00:08]} Be7 {[%emt 0:01:30]} 8. Bg5 {[%emt 0:00:08]} Be6 {[%emt 0:02:31]} 9. Bxf6 {[%emt 0:00:03]} Bxf6 {[%emt 0:00:02]} 10. O-O {[%emt 0:00:13]} Qc7 {[%emt 0:01:38]} (10... Be7 $11) 11. Nd5 $14 {[%emt 0:00:20]} Bxd5 {[%emt 0:00:06]} 12. Qxd5 {[%emt 0:00:05]} Nd7 {[%emt 0:00:13]} 13. Rfd1 {[%emt 0:01:54]} Be7 {[%emt 0:02:29]} 14. Bc4 {[%emt 0:00:02]} O-O {[%emt 0:00:30]} 15. Qd3 {[%emt 0:08:26]} Rac8 {[%emt 0:05:53]} 16. Bd5 {[%emt 0:00:45]} Qxc2 {[%emt 0:11:27]} 17. Bxb7 {[%emt 0:00:09]} Qxd3 {[%emt 0:00:04]} 18. Rxd3 {[%emt 0:00:12]} Rb8 {[%emt 0:00:04]} 19. Bc6 {[%emt 0:00:53]} Nc5 {[%emt 0:00:06][%cal Bd7c5,Bc5a4,Ba4c3][%mdl 32]} 20. Rd2 {[%emt 0:00:39]} Rb4 {[%emt 0:14:38]} (20... Rfc8 $5 21. Bd5 $8 Nd7 $17) 21. Re1 {[%emt 0:08:12][%cal Ba1e1,Be1e2,Be2e3,Be3d3][%mdl 32]} Rfb8 {[%emt 0:02:42]} 22. Ree2 {[%emt 0:05:53]} Na4 {[%emt 0:06:40]} 23. b3 {[%emt 0:06:04]} Nc3 {[%emt 0:01:08][%cal Oe7g5]} 24. Re3 {[%emt 0:00:47]} Nb5 {[%emt 0:00:07]} 25. Bxb5 {[%emt 0:01:02]} R8xb5 {[%emt 0:02:14]} 26. Rc2 {[%emt 0:00:39]} f6 {[%emt 0:00:52]} 27. Rc7 {[%emt 0:03:39]} Kf7 {[%emt 0:15:32]} 28. Rd3 {[%emt 0:03:37]} Rc5 {[%emt 0:24:37]} 29. Rxc5 {[%emt 0:02:57]} dxc5 $11 {[%emt 0:00:05][%mdl 4096] Endgame. KRB-KRN} 30. Nd2 {[%emt 0:05:22]} Rd4 {[%emt 0:00:24]} 31. Rxd4 {[%emt 0:00:02]} cxd4 {[%emt 0:00:02] KB-KN} 32. Kf1 {[%emt 0:00:23]} Ke6 {[%emt 0:02:36]} 33. Ke2 {[%emt 0:00:04]} h5 {[%emt 0:05:07]} 34. Nc4 {[%emt 0:01:01]} h4 {[%emt 0:00:54]} 35. h3 {[%emt 0:01:35]} g5 {[%emt 0:00:13]} 36. Kd3 {[%emt 0:02:14]} Bd8 {[%emt 0:00:32]} (36... Kd7 $11) 37. b4 {[%emt 0:00:19]} Be7 {[%emt 0:01:34]} 38. a3 {[%emt 0:00:05]} Bd8 {[%emt 0:01:29]} 39. Nb2 {[%emt 0:02:11]} Kd6 {[%emt 0:00:49]} 40. Kc4 {[%emt 0:00:34]} Kc6 {[%emt 0:00:30]} 41. Nd3 {[%emt 0:30:26]} Be7 $1 {[%emt 0:01:54]} 42. Ne1 {[%emt 0:00:00]} Bd6 {[%emt 0:11:02]} 43. Nf3 {[%emt 0:00:00]} Kd7 {[%emt 0:04:38]} ({Black should play} 43... Bc7) 44. Kd5 $1 $16 {[%emt 0:00:00]} Bb8 $2 {[%emt 0:01:01]} (44... Bc7 $16 45. Ne1 Bb6) 45. Ne1 $18 {[%emt 0:00:00]} Bd6 {[%emt 0:02:30]} 46. Nd3 {[%emt 0:00:00]} Be7 {[%emt 0:01:20]} (46... Bf8 $142 47. a4 Be7) 47. a4 {[%emt 0:00:00][%cal Ba3a4,Ba4b5,Bb5b6,Bb6b7][%mdl 32]} Bf8 {[%emt 0:00:05]} (47... Kc7 $142 48. Ke6 Bd8) 48. b5 {[%emt 0:00:00]} axb5 {[%emt 0:06:47]} 49. axb5 {[%emt 0:00:00]} Ba3 $2 {[%emt 0:00:55]} (49... Kc7 50. Ke6 Kb6) 50. b6 {[%emt 0:00:00]} Be7 {[%emt 0:00:04]} 51. b7 {[%emt 0:00:00]} Kc7 {[%emt 0:00:09]} 52. Ke6 {[%emt 0:00:00]} Bd8 {[%emt 0:00:06]} 53. Nc5 {[%emt 0:01:01]} Kb8 {[%emt 0:00:05] [#]} 54. f3 $2 {[%emt 0:00:24]} (54. g4 $1 $18 Kc7 55. f3) 54... Kc7 $11 {[%emt 0:03:20]} 55. Kf7 {[%emt 0:16:22]} Kb8 {[%emt 0:00:06]} 56. Ke8 {[%emt 0:00:23]} (56. Ne6 $2 Bb6 57. Kxf6 d3 (57... Kxb7 $2 58. f4 $19) 58. Nxg5 d2 $19 (58... Kxb7 $2 59. Kg7 $19)) 56... Bb6 {[%emt 0:00:05]} 57. Nd3 {[%emt 0:00:03]} Kxb7 {[%emt 0:00:03]} 58. Ke7 {[%emt 0:00:03]} Kc6 {[%emt 0:01:40]} 59. Kxf6 {[%emt 0:00:10]} Bc7 {[%emt 0:00:37][%mdl 8192]} (59... Kb5 $1 $11) 60. Kxg5 $18 {[%emt 0:00:06]} Kb5 {[%emt 0:00:24]} 61. Kxh4 {[%emt 0:02:49]} Kc4 {[%emt 0:00:04] [#]} 62. Nf2 $1 {[%emt 0:00:03]} Ba5 {[%emt 0:00:37] Hoping for ...Be1.} 63. Ng4 {[%emt 0:00:19]} Bc7 {[%emt 0:00:33]} 64. Kg3 {[%emt 0:04:14]} (64. Nh2 $1 $14 Kd3 (64... Bd8+ 65. Kg3 $16) 65. Kg5) 64... Kc3 $11 {[%emt 0:02:19]} 65. Nf2 {[%emt 0:11:43]} Kd2 $1 {[%emt 0:00:42]} 66. h4 {[%emt 0:00:02] Black must now prevent h5.} Ke2 {[%emt 0:01:20]} 67. h5 {[%emt 0:00:01]} Ba5 $2 {[%emt 0:00:39][%mdl 8192]} (67... Bd6 $1 $11 68. h6 Bf8) 68. h6 $18 {[%emt 0:01:15] And now h7 would win.} Be1 {[%emt 0:00:10]} 69. h7 {[%emt 0:00:03]} Bxf2+ {[%emt 0:00:08] KB-KP} 70. Kg4 $2 {[%emt 0:16:06]} (70. Kh3 $18) 70... d3 $11 {[%emt 0:00:03]} 71. h8=Q {[%emt 0:00:04]} d2 {[%emt 0:00:03]} 72. Qxe5 {[%emt 0:00:17] Strongly threatening Qb2.} d1=Q {[%emt 0:00:03]} 73. Qb5+ {[%emt 0:00:17]} Ke3 {[%emt 0:01:13]} 74. Qc5+ {[%emt 0:01:08]} Ke2 {[%emt 0:00:15]} 75. Qc4+ {[%emt 0:00:59]} Ke3 {[%emt 0:00:25]} 76. Qc5+ {[%emt 0:00:44]} Ke2 {[%emt 0:00:06]} 77. Qb5+ {[%emt 0:00:02]} Ke3 {[%emt 0:00:30]} 78. e5 {[%emt 0:00:27]} Qh1 {[%emt 0:01:45]} 79. Qc5+ {[%emt 0:00:09]} Ke2 {[%emt 0:00:04]} 80. Qc2+ {[%emt 0:00:14]} Ke3 {[%emt 0:00:53] ( -> ...Qh4+)} 81. Qe4+ {[%emt 0:01:02]} Kd2 {[%emt 0:00:05]} 82. g3 {[%emt 0:00:05] e6 would now be deadly.} Qh8 {[%emt 0:01:12]} 83. Qf5 {[%emt 0:02:42]} Be3 {[%emt 0:00:56]} 84. f4 {[%emt 0:00:31] Threatens to win with e6.} Ke1 $2 {[%emt 0:00:56][%mdl 8192]} (84... Qg8+ $11 {and Black has nothing to worry.} 85. Kh5 Qh8+ (85... Qxg3 86. e6 $11) 86. Kg4 Qg8+ 87. Kh5 Qe8+ (87... Qxg3 88. e6 $11) 88. Kg5 Qd8+ 89. Qf6 Qg8+ 90. Qg6 Qd8+ 91. Kg4 Qa8) 85. e6 {[%emt 0:00:49] Weighted Error Value: White=0.13 (very precise) /Black=0.24 (precise) .  Loses game:     	---       	Black=3      Mistake:       	White=1     	Black=7      Inaccurate:     	White=2     	Black=1      OK:         	White=31    	Black=18     Best:        	White=11    	Black=12     Strong:       	White=2     	Black=2} 1-0